Cogmind - Beta 15 @@@ ROGUE MODE // 2025.05.27 @ 20:49:11 Player: Elias Result: Destroyed by S-10 Pest with Light Assault Rifle Performance ------------- Evolutions (2) 1000 Regions Visited (5) 1000 Robots Destroyed (25) 125 Value Destroyed (910) 910 Prototype IDs (27) 540 Alien Tech Used (0) 0 Bonus (300) 300 TOTAL SCORE: 3875 Bonus ------- Aligned with FarCom 300 Cogmind --------- Core Integrity 0/550 Matter 295/300 Energy 160/160 System Corruption 0% Temperature Cool (0) Movement Core (200) Ox3 Location -8/Materials Parts ------- > --- POWER (1) -------- Light Nuclear Core > --- PROPULSION (3) --- (None) > --- UTILITY (5) ------ Small Storage Unit > --- WEAPON (2) ------- (None) > --- INVENTORY (8) ---- Faulty Cooled Ion Engine Light Nuclear Core Aluminum Leg ECM Suite Medium Armor Plating AWS/Gauss Peak State ------------ > --- POWER ------------ Deuterium Engine > --- PROPULSION ------- Aluminum Leg Carbon-fiber Leg Carbon-fiber Leg > --- UTILITY ---------- Small Storage Unit Advanced Weight Redist. System Insulated Plating > --- WEAPON ----------- AWS/Gauss > --- INVENTORY -------- Light Deuterium Engine ECM Suite Medium Armor Plating Ion Cannon Light Assault Rifle Grenade Launcher Mining Laser [Rating: 34] Favorites ----------- Power Ion Engine Engine Ion Engine Power Core Light Nuclear Core Propulsion Aluminum Leg Leg Aluminum Leg Utility Small Storage Unit Device Seismic Detector Storage Small Storage Unit Protection Insulated Plating Weapon Light Assault Rifle Energy Gun EM Pulse Gun Energy Cannon Ion Cannon Ballistic Gun Light Assault Rifle Launcher Grenade Launcher Build | -11 -10 -10 -10 -9 -8 ------- Run | Yrd Mat Min Exi Min Mat Slots Evolved 4 | . . . . . 4 Power . | . . . . . . Propulsion 1 | . . . . . 1 Utility 3 | . . . . . 3 Weapon . | . . . . . . Parts Attached 30 | 5 1 2 1 2 19 Power 5 | 1 . . . . 4 Engine 4 | 1 . . . . 3 Core 1 | . . . . . 1 Reactor . | . . . . . . Propulsion 8 | 2 . . . . 6 Treads . | . . . . . . Leg 8 | 2 . . . . 6 Wheel . | . . . . . . Hover . | . . . . . . Flight . | . . . . . . Utility 6 | 1 . . . 2 3 Device 2 | . . . . 1 1 Storage 1 | 1 . . . . . Processor . | . . . . . . Hackware . | . . . . . . Protection 3 | . . . . 1 2 Artifact . | . . . . . . Weapon 11 | 1 1 2 1 . 6 Energy Gun 5 | . 1 . . . 4 Energy Cannon 1 | . . . . . 1 Ballistic Gun 4 | 1 . 1 1 . 1 Ballistic Cannon . | . . . . . . Launcher 1 | . . 1 . . . Special Weapon . | . . . . . . Impact Weapon . | . . . . . . Slashing Weapon . | . . . . . . Piercing Weapon . | . . . . . . Special Melee Weapon . | . . . . . . Unidentified Prototypes 4 | . . . . . 4 Parts Lost 15 | . . . . . 15 Power 2 | . . . . . 2 Propulsion 6 | . . . . . 6 Utility 3 | . . . . . 3 Weapon 4 | . . . . . 4 Highest Loss Streak 10 | . . . . . 10 To Critical Strikes . | . . . . . . Average Backups 6 | 3 4 6 7 8 6 Power 1 | . 1 1 1 1 1 Propulsion 1 | 1 2 2 2 1 . Utility 1 | . . 1 1 1 2 Weapon 2 | 1 1 2 3 3 2 Tool/Special . | . . . . . . Unused Backups 8 | . . . . 1 7 Power 2 | . . . . . 2 Propulsion 3 | . . . . 1 2 Utility 1 | . . . . . 1 Weapon 2 | . . . . . 2 Tool/Special . | . . . . . . Average Slot Usage (%) 72 | . 85 85 78 84 56 Engine 10 | . 14 14 14 14 5 Leg 25 | . 28 28 28 28 21 Device 4 | . . . . 8 5 Storage 12 | . 14 14 14 14 9 Protection 2 | . . . . 4 3 Energy Gun 2 | . 14 . . . 3 Ballistic Gun 13 | . 14 23 21 14 7 Peak Build Rating 34 | 5 6 6 20 22 34 Average Rating 15 | 4 6 6 12 21 18 On Entrance 9 | . 5 6 6 20 21 Naked Turns . | . . . . . . Heaviest Build 28 | 11 13 14 20 27 28 Greatest Support 49 | 20 20 20 20 20 49 Greatest Overweight (x) 3 | . . . . 1 3 Average Overweight (x) . | . . . . . . Largest Inventory Capacity 8 | 8 8 8 8 8 8 Average Capacity 7 | 7 8 8 8 8 8 Most Carried 8 | 5 6 7 8 8 8 Average Carried 7 | 3 4 6 7 7 7 Final Capacity 8 | 8 8 8 8 8 8 Final Carried 8 | 5 6 7 8 8 7 Class Distribution -------------------- 85% | Mutant 14% | Scavenger-Mutant Dominant Class ---------------- Mutant | -10/Materials Mutant | -10/Mines Mutant | -10/Exiles Mutant | -9/Mines Mutant | -8/Materials Resources | -11 -10 -10 -10 -9 -8 ----------- Run | Yrd Mat Min Exi Min Mat Matter Collected 611 | 253 . 4 . 104 250 Remotely . | . . . . . . Salvage Created 1189 | 86 . 7 . 135 961 Parts 66 | 4 . 6 . 5 51 Haulers Intercepted 1 | . . . . . 1 Recyclers Shooed 1 | . . . . . 1 Parts Field Recycled . | . . . . . . Retrieved Matter . | . . . . . . Parts Self-Destructed . | . . . . . . Prevented . | . . . . . . Kills | -11 -10 -10 -10 -9 -8 ------- Run | Yrd Mat Min Exi Min Mat Combat Hostiles Destroyed 21 | . . 3 . 3 15 Guns 16 | . . . . 3 13 Cannons 2 | . . . . . 2 AOE 3 | . . 3 . . . Classes Destroyed 8 | 1 . 1 . 1 5 Hauler 1 | . . . . . 1 Recycler 2 | 1 . . . . 1 Watcher 1 | . . . . . 1 Swarmer 3 | . . 3 . . . Grunt 11 | . . . . 3 8 Duelist 1 | . . . . . 1 Sentry 5 | . . . . . 5 Hunter 1 | . . . . . 1 Best Kill Streak 6 | 1 . 3 . 3 6 Combat Bots Only 6 | . . 3 . 3 6 Max Kills in Single Turn 1 | 1 . 1 . 1 1 Gunslinging . | . . . . . . Exploded 1 | . . 1 . . . Melee . | . . . . . . Uniques/NPCs Destroyed . | . . . . . . Combat | -11 -10 -10 -10 -9 -8 -------- Run | Yrd Mat Min Exi Min Mat Hostile Shots Fired 192 | . . 11 . 3 178 Missed 59 | . . 7 . 2 50 Hits 133 | . . 4 . 1 128 Melee 9 | . . . . . 9 Projectile 124 | . . 4 . 1 119 Critical Strikes 8 | . . . . . 8 Damage Taken 2028 | . . 47 . 11 1970 Core 554 | . . . . . 554 Absorbed by Shields . | . . . . . . Core Remaining (%) 100 | 100 . . . 100 . Volleys Fired 76 | 3 4 4 . . 65 Largest 2 | 1 2 2 . . 2 Hottest 130 | 20 60 50 . . 130 Shots Fired 152 | 3 8 8 . 12 121 Gun 142 | 3 8 4 . 12 115 Cannon 6 | . . . . . 6 Launcher 4 | . . 4 . . . Special . | . . . . . . Kinetic 106 | 3 4 4 . 12 83 Thermal 38 | . . . . . 38 Explosive 4 | . . 4 . . . Electromagnetic 4 | . 4 . . . . Robot Hit Streak 22 | 3 5 2 . 8 22 Robot Miss Streak 4 | . 2 . . 1 4 Penetration Max 1 | . . . . 1 . Secondary Targets . | . . . . . . Autonomous 45 | . . . . 12 33 Shots Hit Robots 107 | 3 5 2 . 10 87 Core Hits 48 | 2 2 4 . 3 37 Critical Kills . | . . . . . . Critical Parts Destroyed . | . . . . . . Critical Strikes 1 | . 1 . . . . Corrupt 1 | . 1 . . . . Melee Attacks . | . . . . . . Impact . | . . . . . . Slashing . | . . . . . . Piercing . | . . . . . . Sneak Attacks . | . . . . . . Combat Hostiles . | . . . . . . Follow-up Attacks . | . . . . . . Damage Inflicted 2242 | 24 67 162 . 331 1658 Guns 1967 | 24 67 . . 331 1545 Cannons 113 | . . . . . 113 Explosions 162 | . . 162 . . . Melee . | . . . . . . Ramming . | . . . . . . Kinetic 1544 | 24 23 . . 331 1166 Thermal 492 | . . . . . 492 Explosive 162 | . . 162 . . . Electromagnetic 44 | . 44 . . . . Impact . | . . . . . . Slashing . | . . . . . . Piercing . | . . . . . . Highest Corruption . | . . . . . . Average Corruption . | . . . . . . Corruption Purged . | . . . . . . Corruption Blocked . | . . . . . . Overload Shots . | . . . . . . Overflow Damage . | . . . . . . Projectiles . | . . . . . . Explosions . | . . . . . . Melee . | . . . . . . Knockbacks . | . . . . . . Impact . | . . . . . . Kinetic . | . . . . . . Secondary . | . . . . . . Self-Inflicted Damage 13 | . . 13 . . . Shots 1 | . . 1 . . . Rammed . | . . . . . . Targets Rammed . | . . . . . . Kicked . | . . . . . . Crushed . | . . . . . . Highest Temperature 405 | . 40 20 . . 405 Average Temperature 120 | . 18 10 . . 133 Received Heat Transfer 735 | . . . . 6 729 Effects 1 | . . . . . 1 Short Circuit 1 | . . . . . 1 Siege Activations . | . . . . . . Martial Activations . | . . . . . . Shielding Activations . | . . . . . . Robots Disrupted . | . . . . . . Combat Hostiles . | . . . . . . Robots Corrupted . | . . . . . . Combat Hostiles . | . . . . . . Parts Fried . | . . . . . . Impact Corruptions . | . . . . . . Robots Melted . | . . . . . . Combat Hostiles . | . . . . . . Parts Melted 2 | . . . . . 2 Heat Transferred 962 | . . . . . 962 Parts Sabotaged . | . . . . . . Parts Stolen . | . . . . . . Parts Stripped . | . . . . . . Power Chain Reactions . | . . . . . . Alert | -11 -10 -10 -10 -9 -8 ------- Run | Yrd Mat Min Exi Min Mat Maximum Alert Level 1 | . . . . . 1 Low Security (%) 94 | 100 100 100 . 100 87 Level 1 5 | . . . . . 12 Level 2 . | . . . . . . Level 3 . | . . . . . . Level 4 . | . . . . . . Level 5 . | . . . . . . High Security . | . . . . . . Max Security . | . . . . . . Peak Influence 221 | 5 . 93 . 72 221 Initial 13 | . . . . . 13 Average 60 | . . 73 . 11 120 Influence Increases 630 | 5 . 93 . 82 450 Destroy 0b10 Robot/C 420 | . . 60 . 60 300 Destroy 0b10 Robot/NC 20 | 5 . . . . 15 Destroy Leader 104 | . . 10 . 10 84 Allied During Kill 6 | . . . . 4 2 Disable Machine 30 | . . . . . 30 Destroy Structure 50 | . . 23 . 8 19 Influence Decreases 579 | 5 . 20 73 48 433 Entered New Map 94 | . . . 73 . 21 Time Decay 335 | 5 . 20 . 48 262 Lost Part 150 | . . . . . 150 Squads Dispatched 1 | . . . . . 1 Investigation . | . . . . . . Extermination . | . . . . . . Reinforcement 1 | . . . . . 1 Assault . | . . . . . . Garrison . | . . . . . . Intercept . | . . . . . . Searches Triggered . | . . . . . . Construction Impeded . | . . . . . . Haulers Reinforced . | . . . . . . Active Scanning Responses . | . . . . . . Cargo Convoy Interrupts . | . . . . . . Stealth | -11 -10 -10 -10 -9 -8 --------- Run | Yrd Mat Min Exi Min Mat Distress Signals 3 | . . . . . 3 Communications Jammed . | . . . . . . Distress Signals . | . . . . . . Times Spotted 34 | . 2 3 . 3 26 Peak Tracking Total 7 | . 2 3 . 2 7 Tactical Retreats . | . . . . . . Traps | -11 -10 -10 -10 -9 -8 ------- Run | Yrd Mat Min Exi Min Mat Traps Triggered . | . . . . . . Indirectly . | . . . . . . Trap Hack Attempts . | . . . . . . Triggered . | . . . . . . Disarmed . | . . . . . . Reprogrammed . | . . . . . . Reused . | . . . . . . Traps Extracted . | . . . . . . Installed . | . . . . . . Triggered . | . . . . . . Machines | -11 -10 -10 -10 -9 -8 ---------- Run | Yrd Mat Min Exi Min Mat Machines Disabled 2 | . . . . . 2 Max in Single Turn 1 | . . . . . 1 Machines Repaired . | . . . . . . Machines Dismantled . | . . . . . . Machines Sabotaged . | . . . . . . Overloaded Fab Kills . | . . . . . . Hacking | -11 -10 -10 -10 -9 -8 --------- Run | Yrd Mat Min Exi Min Mat Machines Accessed 2 | . 1 . 1 . . Terminals . | . . . . . . Fabricators . | . . . . . . Repair Stations . | . . . . . . Recycling Units 1 | . 1 . . . . Scanalyzers . | . . . . . . Garrison Access . | . . . . . . Total Hacks 3 | . 2 . 1 . . Successful 3 | . 2 . 1 . . Failed . | . . . . . . Catastrophic . | . . . . . . Database Lockouts . | . . . . . . Manual 1 | . . . 1 . . Terminals . | . . . . . . Fabricators . | . . . . . . Repair Stations . | . . . . . . Recycling Units 2 | . 2 . . . . Scanalyzers . | . . . . . . Garrison Access . | . . . . . . Terminal Hacks 1 | . . . 1 . . Proto ID Catalog 1 | . . . 1 . . Fabricator Hacks . | . . . . . . Repair Station Hacks . | . . . . . . Recycling Unit Hacks 2 | . 2 . . . . Process 1 | . 1 . . . . Retrieve Components 1 | . 1 . . . . Scanalyzer . | . . . . . . Garrison Access Hacks . | . . . . . . Unauthorized Hacks . | . . . . . . Terminals . | . . . . . . Fabricators . | . . . . . . Repair Stations . | . . . . . . Recycling Units . | . . . . . . Scanalyzers . | . . . . . . Garrison Access . | . . . . . . Data Cores Recovered . | . . . . . . Used . | . . . . . . Hacking Detections 1 | . 1 . . . . Full Trace Events . | . . . . . . Feedback Events . | . . . . . . Feedback Blocked . | . . . . . . Robot Schematics Acquired . | . . . . . . Robots Built . | . . . . . . Authchips . | . . . . . . Time . | . . . . . . Total Robot Build Rating . | . . . . . . Part Schematics Acquired . | . . . . . . Parts Built . | . . . . . . Authchips . | . . . . . . Time . | . . . . . . Total Part Build Rating . | . . . . . . Parts Repaired . | . . . . . . Time . | . . . . . . Parts Recycled . | . . . . . . Recycled Matter . | . . . . . . Retrieved Matter . | . . . . . . Retrieved Components . | . . . . . . Parts Scanalyzed . | . . . . . . Part Schematics Acquired . | . . . . . . Parts Damaged . | . . . . . . Bothacking | -11 -10 -10 -10 -9 -8 ------------ Run | Yrd Mat Min Exi Min Mat Used RIF Installer . | . . . . . . Robots Hacked . | . . . . . . Non-combat . | . . . . . . Combat . | . . . . . . Robot Hacks Applied . | . . . . . . Relay Couplers Released . | . . . . . . Fabnet Peak Effective % . | . . . . . . Robots Rewired . | . . . . . . Allies Hacked . | . . . . . . Hacks Repelled . | . . . . . . Allies | -11 -10 -10 -10 -9 -8 -------- Run | Yrd Mat Min Exi Min Mat Total Allies 1 | . . . . 1 . Largest Group 1 | . . . . 1 1 Highest-Rated Group 31 | . . . . 31 31 Highest-Rated Ally 31 | . . . . 31 31 Total Orders . | . . . . . . Ally Attacks 16 | . . . . 7 9 Total Damage 83 | . . . . 42 41 Kills . | . . . . . . Allies Corrupted . | . . . . . . Allies Melted . | . . . . . . Intel | -11 -10 -10 -10 -9 -8 ------- Run | Yrd Mat Min Exi Min Mat Active Infowar (turns) 409 | . . . . 265 144 Seismic 409 | . . . . 265 144 Robot Analysis Total . | . . . . . . Derelict Logs Recovered . | . . . . . . Drone Launches . | . . . . . . Drone Recoveries . | . . . . . . Exploration | -11 -10 -10 -10 -9 -8 ------------- Run | Yrd Mat Min Exi Min Mat Turns Passed 1556 | 87 172 53 260 405 579 Spaces Moved 951 | 61 132 32 215 206 305 Core 18 | 9 . . . . 9 Treads . | . . . . . . Legs 933 | 52 132 32 215 206 296 Wheels . | . . . . . . Hover . | . . . . . . Flight . | . . . . . . Fastest Speed 50 | 50 120 120 120 120 100 Average Speed 135 | 109 120 120 120 188 123 Slowest Speed 200 | 120 120 120 120 190 200 Overloaded Moves . | . . . . . . Propulsion Burnouts . | . . . . . . Robots Hopped . | . . . . . . Potential Cave-ins . | . . . . . . Cave-ins Triggered . | . . . . . . Exploration Rate (%) 29 | 4 30 7 61 46 27 Regions Visited 5 Branch Regions 3 Pre-discovered Areas . | . . . . . . Known Exits Taken . | . . . . . . Unknown Exits Taken 5 | 1 1 1 1 1 . Scrap Searched 1 | . . . . 1 . Spaces Dug . | . . . . . . Terrain Destroyed 50 | . . 23 . 10 17 Melee . | . . . . . . Projectile 27 | . . . . 10 17 AOE 23 | . . 23 . . . Terrain Rammed . | . . . . . . Walls Destroyed . | . . . . . . Machines Disabled . | . . . . . . Actions | -11 -10 -10 -10 -9 -8 --------- Run | Yrd Mat Min Exi Min Mat Total 1126 | 78 138 38 217 224 431 Wait 22 | . . . . 13 9 Move 946 | 60 131 31 214 205 305 Hop . | . . . . . . Pick Up 28 | 10 2 1 . 1 14 Fast Attach 8 | . . . 1 2 5 Attach 18 | 5 1 . . . 12 Detach 3 | . . . 1 1 1 Swap 10 | . . 2 . . 8 Drop 15 | . . . 1 2 12 Fire 76 | 3 4 4 . . 65 Melee . | . . . . . . Ram . | . . . . . . Kick . | . . . . . . Crush . | . . . . . . Escape Stasis . | . . . . . . Rewire . | . . . . . . Trap . | . . . . . . Miscellaneous . | . . . . . . Route ------- -11/Scrapyard -10/Materials -10/Mines -10/Exiles -9/Mines (discovered 2 exits: [*Mat x2]) -8/Materials History --------- Turn | Location | Event 8 | -11/Scrapyard | Discovered new exit (range 15) 88 | -11/Scrapyard | Entered Materials 200 | -10/Materials | Discovered new exit (range 12) 260 | -10/Materials | Entered Mines 277 | -10/Mines | Met a Derelict bent on vengeance 307 | -10/Mines | Deemed a non-threat by the Exiles lab entrance 308 | -10/Mines | Discovered new exit (range 5) 313 | -10/Mines | Entered Exiles 317 | -10/Exiles | Build established: Mutant 346 | -10/Exiles | Met 8R-AWN 366 | -10/Exiles | Met EX-HEX 401 | -10/Exiles | Met EX-BIN 415 | -10/Exiles | Aligned with FarCom system 417 | -10/Exiles | Given EX-Vault access code 444 | -10/Exiles | Opened EX-Vault 456 | -10/Exiles | Found AWS/Gauss 484 | -10/Exiles | Warned to stay clear of 0b10 Research branches 514 | -10/Exiles | Met EX-DEC 561 | -10/Exiles | Discovered new exit (range 12) 573 | -10/Exiles | Left Exiles lab with AWS/Gauss 573 | -10/Exiles | Entered Mines 578 | -9/Mines | Discovered new exit (range 11) 787 | -9/Mines | Received a Mining Laser from a helpful Derelict 965 | -9/Mines | Discovered new exit (range 6) 978 | -9/Mines | Entered Materials 978 | -8/Materials | Accompanied by 1 ally 978 | -8/Materials | Evolved 4 slots: Propulsion x1, Utility x3 1141 | -8/Materials | AWS/Gauss suddenly broke down 1370 | -8/Materials | Core integrity fell below 50% 1408 | -8/Materials | Lost 10 parts (2p3n2u3w) 1467 | -8/Materials | Core integrity fell below 20% 1557 | -8/Materials | Destroyed by S-10 Pest with Light Assault Rifle Last Messages --------------- 01437_ Acquired Aluminum Leg. 01439_ Acquired 10 matter. 01446_ Acquired Aluminum Leg. 01450_ Acquired 10 matter. 01452_ Acquired Aluminum Leg. 01465_ K-01 Serf cleans the Processing Tank. 01466_ Penetrated by Slug. 01481_ Atomic Centrifuge disabled. 01487_ K-01 Serf cleans the Processing Tank. 01501_ Slug penetrates Wall. 01501_ Acquired Prototype Engine. 01504_ K-01 Serf cleans the Processing Tank. 01507_ Penetrated by Slug. 01507_ Identified Cld. Ion Engine. 01507_ Faulty integration triggers energy drain (-47). 01510_ Penetrated by Slug. 01516_ Aluminum Leg destroyed. 01519_ Lgt. Assault Rifle destroyed. 01522_ Slug penetrates Wall. 01525_ Aluminum Leg destroyed. Map ----- +----------------------------------------------------+ | ?????????????????????????????????????????????????? | | ?????????????????????????????????????????????????? | | ?????????????????????????????????????????????????? | | ?????????????????????????????????????????????????? | | ?????????????????????????????????????????????????? | | ?????????????????????????????????????????????????? | | ?????????????????????????????????????????????????? | | ?????????????????????????????????????????????????? | | ?????????????????????????????????????????????????? | | ?????????????????????????????????????????????????? | | ?????????????????????????????????????????????????? | | ?????????????????????????????????????????????????? | | ?????????????????######??????????????????????????? | | ????????????????##!!!!##?????????????????????????? | | ????????????????#! !#?????????????????????????? | | ????????????????# #?????????????????????????? | | ????#######?????# #####?????????????????????? | | ????# ####### # #??????????????????? | | ????# #??????????????????? | | ##### " #??????????????????? | | """ """ #??????????????????? | | ?#### ####### """ """ #??????????????????? | | ????### ###?????##h """ """ #??????????????????? | | ??????# #?######## """ """ #??????????????????? | | ??????# #?# # """ """ #??????????????????? | | ??????# #?# # s @ #??????????????????? | | ??????# #?# """ # ss #??????????????????? | | #######/### """ # ############??????????????????? | | + #/ "" + ????????????????????? | | # # # ????????????????????? | | # ###+#### ????????????w??????? | | # / ???????????????????? | | # ### ???????????????????? | | # #?#" """"" ??????????????????? | | # #?#T """"" ??????????????????? | | # ###" """"" ?????????????????? | | #######+### ?????????????????? | | ????????????????? | | """ ????????????????? | | % w""" ????????????????? | | ########### "" ?????????????????? | | ##????????# #????????????????????? | | ##????????# /[#????????????????????? | | ##????????# /[#????????????????????? | | #?????????# % #????????????????????? | | ########### #????????????????????? | | ## ## #????????????????????? | | ## ## /[[ #????????????????????? | | ## """ ## /[= #????????????????????? | | # """ ## /[= #????????????????????? | +----------------------------------------------------+ Best States ------------- Heat Dissipation 31 Energy Generation 14 Energy Capacity 275 Matter Stores 300 Matter Capacity 300 Sight Range 16 Terrain Scan Density 10 Additional Mass Support 9 Armor Coverage 225 Resistance: EM 15 Evasion (%) 55 Item Schematics ----------------- None Robot Schematics ------------------ None Fabricated ------------ Nothing Repaired ---------- Nothing Alien Tech Used ----------------- None Achievements -------------- None Challenges ------------ None Game ------ Seed BehemothThiefGun Manual? 0 Play Time 00:18:14 Cumulative 18.3 hours Start 2025.05.27 @ 20:31:14 End 2025.05.27 @ 20:49:11 Sessions 1 Manual Loads 0 Difficulty Rogue Special Mode None Game No. 25 Rogue 25 Adventurer 0 Explorer 0 Win Type - Total 0 Types 0/0/0/0/0/0/0/0/0/0 Lore% 18 Gallery% 21 Achievement% 20 Wizard Run 0 Options --------- Layout 0 ASCII 0 Keyboard 0 Movement Mouse Keybinds 0 Fullscreen 1 Font 18/SmallcapsGlow Map View 76x50 Zoom Use 0% Tactical HUD 1 Map Filters NONE Filters NONE Steam 1 RUN: 5ad5a88a-2668-41d0-826b-1d253c9a4975